[Event "Late-Titled-Tuesday-Blitz-August-29-2023"]
[Site "Chess.com"]
[Date "2023.08.29"]
[Round "6"]
[White "jk13"]
[Black "Jospem"]
[Result "0-1"]
[WhiteElo "2676"]
[BlackElo "3045"]
[TimeControl "180+1"]
[EndTime "15:04:59 PDT"]
[Termination "Jospem won by resignation"]

1. e4 {[%clk 0:03:00.9]} 1... c5 {[%clk 0:03:00.1]} 2. c3 {[%clk 0:03:01.1]}
2... d6 {[%clk 0:02:58.9]} 3. d4 {[%clk 0:03:00.7]} 3... Nf6 {[%clk 0:02:59.6]}
4. Bd3 {[%clk 0:03:00.6]} 4... Qc7 {[%clk 0:03:00.1]} 5. Nf3 {[%clk 0:03:00.5]}
5... Bg4 {[%clk 0:03:00.1]} 6. O-O {[%clk 0:02:59.8]} 6... Nbd7 {[%clk
0:03:00.3]} 7. Re1 {[%clk 0:02:58]} 7... e6 {[%clk 0:02:59.7]} 8. Nbd2 {[%clk
0:02:57.2]} 8... Be7 {[%clk 0:03:00]} 9. h3 {[%clk 0:02:57.8]} 9... Bh5 {[%clk
0:03:00.4]} 10. Nf1 {[%clk 0:02:58]} 10... O-O {[%clk 0:03:00.3]} 11. Ng3 {[%clk
0:02:58.5]} 11... Bg6 {[%clk 0:03:01]} 12. Bg5 {[%clk 0:02:56.4]} 12... e5
{[%clk 0:02:56.4]} 13. dxe5 {[%clk 0:02:53]} 13... dxe5 {[%clk 0:02:52.2]} 14.
Nh4 {[%clk 0:02:48.6]} 14... c4 {[%clk 0:02:51.9]} 15. Bc2 {[%clk 0:02:48.7]}
15... Bc5 {[%clk 0:02:42.8]} 16. Nhf5 {[%clk 0:02:44.4]} 16... Qb6 {[%clk
0:02:38]} 17. Qe2 {[%clk 0:02:30.9]} 17... Qxb2 {[%clk 0:02:23.8]} 18. Rab1
{[%clk 0:01:16.9]} 18... Qxc3 {[%clk 0:02:20.8]} 19. Rxb7 {[%clk 0:01:16.8]}
19... Rab8 {[%clk 0:01:59.9]} 20. Reb1 {[%clk 0:01:10]} 20... Bb6 {[%clk
0:01:28.9]} 21. Rxb8 {[%clk 0:01:09.2]} 21... Rxb8 {[%clk 0:01:29.8]} 22. Kh2
{[%clk 0:01:00.1]} 22... h6 {[%clk 0:01:22.2]} 23. Bc1 {[%clk 0:00:51.1]} 23...
Kh7 {[%clk 0:01:07.1]} 24. Bb2 {[%clk 0:00:44.4]} 24... Qa5 {[%clk 0:01:03.9]}
25. Qxc4 {[%clk 0:00:39.7]} 25... Bxf2 {[%clk 0:01:01.8]} 26. Bc3 {[%clk
0:00:39.5]} 26... Qd8 {[%clk 0:00:51.8]} 27. Rf1 {[%clk 0:00:31.9]} 27... Rc8
{[%clk 0:00:52.2]} 28. Qd3 {[%clk 0:00:28.1]} 28... Bxg3+ {[%clk 0:00:52.9]} 29.
Nxg3 {[%clk 0:00:27.6]} 29... Qc7 {[%clk 0:00:52.6]} 30. Rf3 {[%clk 0:00:28.2]}
30... Nc5 {[%clk 0:00:52]} 31. Qe2 {[%clk 0:00:25.8]} 31... Ne6 {[%clk
0:00:51.4]} 32. Nf5 {[%clk 0:00:22.4]} 32... Nd4 {[%clk 0:00:51.9]} 33. Bxd4
{[%clk 0:00:17]} 33... exd4+ {[%clk 0:00:45.5]} 34. e5 {[%clk 0:00:17.7]} 34...
Qxc2 {[%clk 0:00:41.7]} 35. Qxc2 {[%clk 0:00:17.2]} 35... Rxc2 {[%clk
0:00:42.6]} 36. exf6 {[%clk 0:00:17.2]} 36... d3 {[%clk 0:00:40.3]} 37. fxg7
{[%clk 0:00:10.6]} 37... d2 {[%clk 0:00:40.8]} 38. Ne3 {[%clk 0:00:11.1]} 38...
Rc3 {[%clk 0:00:38.5]} 39. Nd1 {[%clk 0:00:10.6]} 39... Rxf3 {[%clk 0:00:38.5]}
40. gxf3 {[%clk 0:00:11.5]} 40... Bc2 {[%clk 0:00:38.4]} 41. Nf2 {[%clk
0:00:12.2]} 41... Kxg7 {[%clk 0:00:37.2]} 0-1

[Event "Late-Titled-Tuesday-Blitz-August-29-2023"]
[Site "Chess.com"]
[Date "2023.08.29"]
[Round "6"]
[White "tarno17"]
[Black "RIPOL"]
[Result "0-1"]
[WhiteElo "2181"]
[BlackElo "2412"]
[TimeControl "180+1"]
[EndTime "15:05:01 PDT"]
[Termination "RIPOL won on time"]

1. e4 {[%clk 0:03:00.9]} 1... Nf6 {[%clk 0:02:59.4]} 2. e5 {[%clk 0:03:01.3]}
2... Nd5 {[%clk 0:02:59]} 3. Bc4 {[%clk 0:02:57.4]} 3... Nb6 {[%clk 0:02:57.8]}
4. Bb3 {[%clk 0:02:57.6]} 4... d6 {[%clk 0:02:57.6]} 5. f4 {[%clk 0:02:55]} 5...
c5 {[%clk 0:02:53.8]} 6. d3 {[%clk 0:02:50.9]} 6... Nc6 {[%clk 0:02:52.6]} 7.
Nf3 {[%clk 0:02:50.5]} 7... g6 {[%clk 0:02:47.4]} 8. O-O {[%clk 0:02:40]} 8...
Bg7 {[%clk 0:02:46.4]} 9. exd6 {[%clk 0:02:24.1]} 9... Qxd6 {[%clk 0:02:44.8]}
10. Nc3 {[%clk 0:02:21]} 10... Nd4 {[%clk 0:02:37.2]} 11. Ne4 {[%clk 0:02:08]}
11... Qc7 {[%clk 0:02:36.3]} 12. Nfg5 {[%clk 0:01:32.9]} 12... O-O {[%clk
0:02:22.9]} 13. c3 {[%clk 0:01:09.8]} 13... Nxb3 {[%clk 0:02:20.2]} 14. Qxb3
{[%clk 0:01:10.4]} 14... c4 {[%clk 0:02:07.5]} 15. dxc4 {[%clk 0:00:56.6]} 15...
Qxc4 {[%clk 0:02:06]} 16. Qxc4 {[%clk 0:00:47.3]} 16... Nxc4 {[%clk 0:02:04.8]}
17. b3 {[%clk 0:00:47.8]} 17... Nb6 {[%clk 0:02:01.6]} 18. Ba3 {[%clk
0:00:45.8]} 18... Re8 {[%clk 0:01:50.6]} 19. Rac1 {[%clk 0:00:38.2]} 19... Bf5
{[%clk 0:01:41.4]} 20. Nc5 {[%clk 0:00:32]} 20... Nd5 {[%clk 0:01:17.1]} 21. c4
{[%clk 0:00:23.2]} 21... Nc3 {[%clk 0:01:15.9]} 22. Nxb7 {[%clk 0:00:16.3]}
22... Ne2+ {[%clk 0:01:08.6]} 23. Kh1 {[%clk 0:00:16.2]} 23... Nxc1 {[%clk
0:01:05.9]} 24. Rxc1 {[%clk 0:00:13.4]} 24... a5 {[%clk 0:01:04.8]} 25. Nf3
{[%clk 0:00:11.8]} 25... Be4 {[%clk 0:01:02.1]} 26. Nc5 {[%clk 0:00:10]} 26...
Bxf3 {[%clk 0:01:01.7]} 27. gxf3 {[%clk 0:00:10.9]} 27... Bh6 {[%clk 0:01:01]}
28. Nd3 {[%clk 0:00:03.4]} 28... Rad8 {[%clk 0:00:58]} 29. Ne5 {[%clk
0:00:03.3]} 29... Bxf4 {[%clk 0:00:56.2]} 30. Re1 {[%clk 0:00:03.8]} 30... Bxe5
{[%clk 0:00:52]} 31. Rxe5 {[%clk 0:00:04.7]} 31... Rd2 {[%clk 0:00:45.6]} 32.
Rxa5 {[%clk 0:00:01.1]} 32... Rxa2 {[%clk 0:00:44.4]} 33. Bb4 {[%clk 0:00:01.7]}
33... Rb2 {[%clk 0:00:36.6]} 34. Ra3 {[%clk 0:00:01.8]} 34... Rd8 {[%clk
0:00:34.6]} 0-1

[Event "Late-Titled-Tuesday-Blitz-August-29-2023"]
[Site "Chess.com"]
[Date "2023.08.29"]
[Round "6"]
[White "frederiksvane"]
[Black "I_am_Javi"]
[Result "0-1"]
[WhiteElo "2929"]
[BlackElo "2762"]
[TimeControl "180+1"]
[EndTime "15:05:04 PDT"]
[Termination "I_am_Javi won by resignation"]

1. c4 {[%clk 0:03:00]} 1... e5 {[%clk 0:02:59.9]} 2. g3 {[%clk 0:03:00]} 2...
Nc6 {[%clk 0:03:00.6]} 3. Bg2 {[%clk 0:03:00.1]} 3... f5 {[%clk 0:03:01.3]} 4.
Nc3 {[%clk 0:03:00.2]} 4... Nf6 {[%clk 0:03:02]} 5. d3 {[%clk 0:03:00]} 5... d6
{[%clk 0:03:02.8]} 6. Nf3 {[%clk 0:02:58.5]} 6... h6 {[%clk 0:03:03.2]} 7. O-O
{[%clk 0:02:58.8]} 7... g5 {[%clk 0:03:03.3]} 8. Rb1 {[%clk 0:02:57.4]} 8... Bg7
{[%clk 0:03:03.4]} 9. b4 {[%clk 0:02:57]} 9... O-O {[%clk 0:03:03.8]} 10. b5
{[%clk 0:02:55.4]} 10... Ne7 {[%clk 0:03:04.3]} 11. a4 {[%clk 0:02:55.9]} 11...
Ng6 {[%clk 0:03:03.9]} 12. a5 {[%clk 0:02:55.5]} 12... Rb8 {[%clk 0:03:03.4]}
13. e3 {[%clk 0:02:55]} 13... g4 {[%clk 0:03:02.4]} 14. Ne1 {[%clk 0:02:54.7]}
14... h5 {[%clk 0:03:03.2]} 15. d4 {[%clk 0:02:49.2]} 15... e4 {[%clk
0:03:02.6]} 16. Nd5 {[%clk 0:02:34.8]} 16... Nh7 {[%clk 0:02:55.4]} 17. Nf4
{[%clk 0:02:34.9]} 17... Qe8 {[%clk 0:02:49.9]} 18. Nxh5 {[%clk 0:02:30.6]}
18... Ng5 {[%clk 0:02:47.8]} 19. h4 {[%clk 0:02:13.9]} 19... Nf3+ {[%clk
0:02:44.4]} 20. Bxf3 {[%clk 0:02:13.7]} 20... gxf3 {[%clk 0:02:33.9]} 21. Bb2
{[%clk 0:01:31.1]} 21... Bh8 {[%clk 0:02:26]} 22. d5 {[%clk 0:01:29.9]} 22...
Nxh4 {[%clk 0:02:20]} 23. Nf4 {[%clk 0:01:25.8]} 23... Be5 {[%clk 0:01:58.2]}
24. gxh4 {[%clk 0:01:03.5]} 24... Bxf4 {[%clk 0:01:57.4]} 25. Kh1 {[%clk
0:00:35.8]} 25... Qh5 {[%clk 0:01:34.2]} 26. Rg1+ {[%clk 0:00:35.8]} 26... Kf7
{[%clk 0:01:34.2]} 27. Rg7+ {[%clk 0:00:35.5]} 27... Ke8 {[%clk 0:01:34.6]} 28.
exf4 {[%clk 0:00:36.1]} 28... Qxh4+ {[%clk 0:01:34.8]} 29. Kg1 {[%clk
0:00:34.3]} 29... Rh8 {[%clk 0:01:30.1]} 30. Kf1 {[%clk 0:00:34.1]} 30... Qh3+
{[%clk 0:01:06.6]} 31. Rg2 {[%clk 0:00:34.1]} 31... Rg8 {[%clk 0:01:04.6]} 32.
Nxf3 {[%clk 0:00:28.7]} 32... Qxg2+ {[%clk 0:00:42]} 33. Ke1 {[%clk 0:00:27.8]}
33... Qxf3 {[%clk 0:00:42.1]} 34. Qd4 {[%clk 0:00:27.7]} 34... Qh1+ {[%clk
0:00:27.2]} 35. Kd2 {[%clk 0:00:23.9]} 35... Qxb1 {[%clk 0:00:28.1]} 36. Bc3
{[%clk 0:00:15.2]} 36... Qd3+ {[%clk 0:00:28.1]} 37. Kc1 {[%clk 0:00:15.4]}
37... Qxd4 {[%clk 0:00:28.4]} 0-1

[Event "Late-Titled-Tuesday-Blitz-August-29-2023"]
[Site "Chess.com"]
[Date "2023.08.29"]
[Round "6"]
[White "wgraif"]
[Black "jamengrand"]
[Result "1-0"]
[WhiteElo "2537"]
[BlackElo "2355"]
[TimeControl "180+1"]
[EndTime "15:05:04 PDT"]
[Termination "wgraif won by resignation"]

1. e4 {[%clk 0:03:00.9]} 1... e5 {[%clk 0:02:59.9]} 2. Nf3 {[%clk 0:02:55.5]}
2... Nc6 {[%clk 0:03:00.2]} 3. d4 {[%clk 0:02:55.2]} 3... exd4 {[%clk
0:03:00.1]} 4. c3 {[%clk 0:02:55.8]} 4... d5 {[%clk 0:02:59.3]} 5. Bd3 {[%clk
0:02:55]} 5... dxe4 {[%clk 0:02:53.7]} 6. Bxe4 {[%clk 0:02:55.9]} 6... Nf6
{[%clk 0:02:53.6]} 7. Bxc6+ {[%clk 0:02:53.3]} 7... bxc6 {[%clk 0:02:53.8]} 8.
O-O {[%clk 0:02:50.9]} 8... c5 {[%clk 0:02:47.8]} 9. cxd4 {[%clk 0:02:34.2]}
9... Be7 {[%clk 0:02:48.1]} 10. dxc5 {[%clk 0:02:04.6]} 10... O-O {[%clk
0:02:46.6]} 11. Be3 {[%clk 0:01:48.9]} 11... Bb7 {[%clk 0:02:43.6]} 12. Nc3
{[%clk 0:01:34.6]} 12... a5 {[%clk 0:02:34.3]} 13. Qxd8 {[%clk 0:01:25.9]} 13...
Rfxd8 {[%clk 0:02:33.1]} 14. Rad1 {[%clk 0:01:24.7]} 14... Kf8 {[%clk
0:02:06.4]} 15. Ne5 {[%clk 0:01:08.8]} 15... Ke8 {[%clk 0:01:42.1]} 16. Nb5
{[%clk 0:00:56.5]} 16... Nd5 {[%clk 0:01:39.3]} 17. c6 {[%clk 0:00:44.5]} 17...
Ba6 {[%clk 0:01:36.1]} 18. Rxd5 {[%clk 0:00:44]} 18... Rxd5 {[%clk 0:01:32.4]}
19. Nxc7+ {[%clk 0:00:43.7]} 19... Kd8 {[%clk 0:01:21.6]} 20. Nxd5 {[%clk
0:00:42.6]} 20... Bxf1 {[%clk 0:01:21.5]} 21. Bb6+ {[%clk 0:00:28.7]} 21... Ke8
{[%clk 0:01:15.3]} 22. Nc7+ {[%clk 0:00:28.8]} 22... Kf8 {[%clk 0:01:15.8]} 23.
Nxa8 {[%clk 0:00:28.9]} 23... Ba6 {[%clk 0:01:11.8]} 24. c7 {[%clk 0:00:16.8]}
24... Bd6 {[%clk 0:01:08.7]} 25. Nc6 {[%clk 0:00:15.3]} 25... Bb7 {[%clk
0:01:08]} 26. Na7 {[%clk 0:00:14.9]} 26... Be5 {[%clk 0:00:55.6]} 27. b3 {[%clk
0:00:13.4]} 27... Ke7 {[%clk 0:00:53.1]} 28. c8=Q {[%clk 0:00:12.3]} 28... Bxc8
{[%clk 0:00:53.5]} 29. Nxc8+ {[%clk 0:00:13.2]} 29... Kd7 {[%clk 0:00:53.9]} 30.
Na7 {[%clk 0:00:13.1]} 30... h5 {[%clk 0:00:48]} 31. Bxa5 {[%clk 0:00:13.4]}
31... h4 {[%clk 0:00:43.8]} 32. h3 {[%clk 0:00:13.4]} 32... Bd4 {[%clk
0:00:44.1]} 33. Bb6 {[%clk 0:00:11.4]} 33... Bc3 {[%clk 0:00:43.6]} 34. a4
{[%clk 0:00:11.1]} 34... g5 {[%clk 0:00:42.3]} 35. a5 {[%clk 0:00:11.5]} 35...
f5 {[%clk 0:00:42.6]} 36. a6 {[%clk 0:00:11.6]} 36... g4 {[%clk 0:00:40.5]} 37.
Nb5 {[%clk 0:00:10]} 37... Bb4 {[%clk 0:00:37.2]} 38. a7 {[%clk 0:00:10.3]}
38... Kc6 {[%clk 0:00:35.4]} 39. Nac7 {[%clk 0:00:10.5]} 1-0

[Event "Late-Titled-Tuesday-Blitz-August-29-2023"]
[Site "Chess.com"]
[Date "2023.08.29"]
[Round "6"]
[White "SRob2003"]
[Black "LastGladiator1"]
[Result "0-1"]
[WhiteElo "2653"]
[BlackElo "2903"]
[TimeControl "180+1"]
[EndTime "15:05:06 PDT"]
[Termination "LastGladiator1 won on time"]

1. c4 {[%clk 0:01:52.8]} 1... e6 {[%clk 0:02:57.7]} 2. g3 {[%clk 0:01:53.4]}
2... d5 {[%clk 0:02:57.1]} 3. Bg2 {[%clk 0:01:54.1]} 3... dxc4 {[%clk
0:02:57.5]} 4. Qa4+ {[%clk 0:01:52.6]} 4... Nd7 {[%clk 0:02:45.5]} 5. Qxc4
{[%clk 0:01:53.1]} 5... Ngf6 {[%clk 0:02:44.4]} 6. Qc2 {[%clk 0:01:49.4]} 6...
c5 {[%clk 0:02:43.4]} 7. a4 {[%clk 0:01:45.3]} 7... Bd6 {[%clk 0:02:42.1]} 8.
Nc3 {[%clk 0:01:45.4]} 8... O-O {[%clk 0:02:41.7]} 9. Nf3 {[%clk 0:01:41.6]}
9... h6 {[%clk 0:02:40.2]} 10. O-O {[%clk 0:01:41.2]} 10... Qe7 {[%clk
0:02:37.5]} 11. d4 {[%clk 0:01:33.6]} 11... e5 {[%clk 0:02:11.3]} 12. dxe5
{[%clk 0:01:07.4]} 12... Nxe5 {[%clk 0:02:10.7]} 13. Nb5 {[%clk 0:01:06.3]}
13... Nc6 {[%clk 0:02:02.9]} 14. Nxd6 {[%clk 0:01:01.5]} 14... Qxd6 {[%clk
0:02:03.8]} 15. Rd1 {[%clk 0:01:02.1]} 15... Qe7 {[%clk 0:01:45.2]} 16. Be3
{[%clk 0:01:02.2]} 16... b6 {[%clk 0:01:44.7]} 17. Ne5 {[%clk 0:01:02]} 17...
Nb4 {[%clk 0:01:41.6]} 18. Qb3 {[%clk 0:00:54.3]} 18... Be6 {[%clk 0:01:13.1]}
19. Qc3 {[%clk 0:00:45.8]} 19... Rad8 {[%clk 0:01:10.5]} 20. Nc6 {[%clk
0:00:30.1]} 20... Nxc6 {[%clk 0:01:09.2]} 21. Bxc6 {[%clk 0:00:31]} 21... Bd5
{[%clk 0:01:06.6]} 22. Bxd5 {[%clk 0:00:16.1]} 22... Nxd5 {[%clk 0:01:06.7]} 23.
Qb3 {[%clk 0:00:16.4]} 23... Qe6 {[%clk 0:01:00.4]} 24. Rd3 {[%clk 0:00:07.3]}
24... Rd7 {[%clk 0:00:46.2]} 25. Rad1 {[%clk 0:00:06.9]} 25... Rfd8 {[%clk
0:00:46.2]} 26. Qc4 {[%clk 0:00:02.7]} 26... Qe5 {[%clk 0:00:30.1]} 27. b3
{[%clk 0:00:02.3]} 27... h5 {[%clk 0:00:26.9]} 28. h4 {[%clk 0:00:02.3]} 28...
Nxe3 {[%clk 0:00:22.9]} 29. Rxd7 {[%clk 0:00:02.1]} 29... Rxd7 {[%clk
0:00:22.7]} 0-1

[Event "Late-Titled-Tuesday-Blitz-August-29-2023"]
[Site "Chess.com"]
[Date "2023.08.29"]
[Round "6"]
[White "ariosp"]
[Black "SergioMoralesG"]
[Result "1-0"]
[WhiteElo "2257"]
[BlackElo "2423"]
[TimeControl "180+1"]
[EndTime "15:05:06 PDT"]
[Termination "ariosp won by checkmate"]

1. e4 {[%clk 0:03:00.9]} 1... c5 {[%clk 0:02:46.9]} 2. Nf3 {[%clk 0:02:59.6]}
2... e6 {[%clk 0:02:47]} 3. d4 {[%clk 0:02:59.9]} 3... cxd4 {[%clk 0:02:47.9]}
4. Nxd4 {[%clk 0:02:59.8]} 4... Nc6 {[%clk 0:02:48.4]} 5. Nc3 {[%clk 0:02:59.2]}
5... Qc7 {[%clk 0:02:48.3]} 6. Be3 {[%clk 0:02:58.8]} 6... a6 {[%clk 0:02:48.5]}
7. Bd3 {[%clk 0:02:58.6]} 7... Nf6 {[%clk 0:02:48.5]} 8. Qe2 {[%clk 0:02:57.3]}
8... b5 {[%clk 0:02:45.1]} 9. Nxc6 {[%clk 0:02:48.1]} 9... Qxc6 {[%clk
0:02:35.9]} 10. e5 {[%clk 0:02:36.3]} 10... Bb4 {[%clk 0:02:35.1]} 11. O-O
{[%clk 0:02:07.5]} 11... Bxc3 {[%clk 0:02:29.4]} 12. bxc3 {[%clk 0:02:05.9]}
12... Bb7 {[%clk 0:02:27.8]} 13. f3 {[%clk 0:01:54.2]} 13... Nd5 {[%clk
0:02:27]} 14. Bd4 {[%clk 0:01:41.6]} 14... Nxc3 {[%clk 0:02:21]} 15. Qd2 {[%clk
0:01:30.5]} 15... Nd5 {[%clk 0:02:10.3]} 16. Rae1 {[%clk 0:00:59.4]} 16... Ne7
{[%clk 0:02:05.5]} 17. Be4 {[%clk 0:00:51.5]} 17... Qc7 {[%clk 0:02:03.6]} 18.
Bxb7 {[%clk 0:00:50.9]} 18... Qxb7 {[%clk 0:02:04.5]} 19. Bc5 {[%clk 0:00:50.1]}
19... Ng6 {[%clk 0:01:55.8]} 20. f4 {[%clk 0:00:44.2]} 20... Rc8 {[%clk
0:01:55.1]} 21. Bd6 {[%clk 0:00:35.9]} 21... Qc6 {[%clk 0:01:43.1]} 22. Re2
{[%clk 0:00:30.2]} 22... Nh4 {[%clk 0:01:33.5]} 23. f5 {[%clk 0:00:19.5]} 23...
Nxf5 {[%clk 0:01:29.7]} 24. Rxf5 {[%clk 0:00:18.8]} 24... h6 {[%clk 0:00:38.8]}
25. Rf1 {[%clk 0:00:15.9]} 25... Qc4 {[%clk 0:00:27.8]} 26. Ref2 {[%clk
0:00:15.6]} 26... Qe4 {[%clk 0:00:18.2]} 27. Rxf7 {[%clk 0:00:12.8]} 27... Rxc2
{[%clk 0:00:17.8]} 28. Rf8+ {[%clk 0:00:12.1]} 28... Rxf8 {[%clk 0:00:17.3]} 29.
Rxf8# {[%clk 0:00:11.6]} 1-0

[Event "Late-Titled-Tuesday-Blitz-August-29-2023"]
[Site "Chess.com"]
[Date "2023.08.29"]
[Round "6"]
[White "Mili_Brizzi"]
[Black "Rinqed222"]
[Result "0-1"]
[WhiteElo "2011"]
[BlackElo "2236"]
[TimeControl "180+1"]
[EndTime "15:05:07 PDT"]
[Termination "Rinqed222 won on time"]

1. e4 {[%clk 0:03:00.9]} 1... e6 {[%clk 0:03:00.3]} 2. d3 {[%clk 0:03:00.6]}
2... d5 {[%clk 0:03:00.6]} 3. Nd2 {[%clk 0:03:01]} 3... c5 {[%clk 0:02:59.3]} 4.
Ngf3 {[%clk 0:02:58.8]} 4... Nc6 {[%clk 0:02:59.6]} 5. g3 {[%clk 0:02:58.8]}
5... Be7 {[%clk 0:02:59.6]} 6. Bg2 {[%clk 0:02:59]} 6... Nf6 {[%clk 0:02:59.9]}
7. O-O {[%clk 0:02:59.3]} 7... O-O {[%clk 0:03:00.3]} 8. Re1 {[%clk 0:02:59.4]}
8... b5 {[%clk 0:02:59.8]} 9. e5 {[%clk 0:02:58.9]} 9... Ne8 {[%clk 0:02:59.6]}
10. Nf1 {[%clk 0:02:56.5]} 10... Nc7 {[%clk 0:02:59.7]} 11. h4 {[%clk
0:02:53.8]} 11... b4 {[%clk 0:03:00.1]} 12. N1h2 {[%clk 0:02:49.2]} 12... Nb5
{[%clk 0:03:00.5]} 13. Bf4 {[%clk 0:02:45.6]} 13... Ncd4 {[%clk 0:03:00.1]} 14.
Ng5 {[%clk 0:02:45.2]} 14... h6 {[%clk 0:02:45.2]} 15. Qh5 {[%clk 0:02:42.2]}
15... hxg5 {[%clk 0:02:34.7]} 16. hxg5 {[%clk 0:02:42.4]} 16... g6 {[%clk
0:02:32.2]} 17. Qh3 {[%clk 0:02:27.2]} 17... Kg7 {[%clk 0:02:29]} 18. Qh6+
{[%clk 0:02:22.7]} 18... Kg8 {[%clk 0:02:28.3]} 19. Ng4 {[%clk 0:02:22.2]} 19...
Nf5 {[%clk 0:02:28.7]} 20. Qh3 {[%clk 0:02:15.5]} 20... Kg7 {[%clk 0:02:24.4]}
21. Nf6 {[%clk 0:02:02.5]} 21... Rh8 {[%clk 0:02:22.3]} 22. Qg4 {[%clk
0:02:00.8]} 22... Bxf6 {[%clk 0:01:54.2]} 23. exf6+ {[%clk 0:01:54.2]} 23... Kf8
{[%clk 0:01:52.6]} 24. c4 {[%clk 0:01:50.6]} 24... Nbd4 {[%clk 0:01:49.4]} 25.
cxd5 {[%clk 0:01:47.7]} 25... exd5 {[%clk 0:01:49.6]} 26. Rac1 {[%clk 0:01:41]}
26... Ne6 {[%clk 0:01:32.3]} 27. Re5 {[%clk 0:01:05.4]} 27... Bb7 {[%clk
0:01:31.7]} 28. Rce1 {[%clk 0:00:51.6]} 28... Nfd4 {[%clk 0:01:19.9]} 29. Rxe6
{[%clk 0:00:41.8]} 29... Nxe6 {[%clk 0:01:07.6]} 30. Rxe6 {[%clk 0:00:41.2]}
30... Bc8 {[%clk 0:01:06.3]} 31. Qe2 {[%clk 0:00:09.3]} 31... Bxe6 {[%clk
0:01:04.6]} 32. Be5 {[%clk 0:00:07.8]} 32... Qb6 {[%clk 0:00:59.6]} 33. Qf3
{[%clk 0:00:06.3]} 33... Rd8 {[%clk 0:00:58.3]} 34. Qf4 {[%clk 0:00:06.6]} 34...
Rd7 {[%clk 0:00:56.2]} 35. Bf1 {[%clk 0:00:04.3]} 35... c4 {[%clk 0:00:41]} 36.
dxc4 {[%clk 0:00:03.7]} 36... dxc4 {[%clk 0:00:40.6]} 37. Qe4 {[%clk 0:00:03.5]}
37... Bd5 {[%clk 0:00:39.6]} 0-1

[Event "Late-Titled-Tuesday-Blitz-August-29-2023"]
[Site "Chess.com"]
[Date "2023.08.29"]
[Round "6"]
[White "MFatigue"]
[Black "IngOscarArdila"]
[Result "1-0"]
[WhiteElo "2492"]
[BlackElo "2296"]
[TimeControl "180+1"]
[EndTime "15:05:12 PDT"]
[Termination "MFatigue won on time"]

1. e4 {[%clk 0:02:56.1]} 1... e5 {[%clk 0:02:59]} 2. Nf3 {[%clk 0:02:55.8]} 2...
Nf6 {[%clk 0:02:59.3]} 3. d4 {[%clk 0:02:55.9]} 3... Nxe4 {[%clk 0:02:59]} 4.
dxe5 {[%clk 0:02:56.4]} 4... d5 {[%clk 0:02:59]} 5. Bd3 {[%clk 0:02:55.9]} 5...
Bc5 {[%clk 0:02:58.5]} 6. O-O {[%clk 0:02:56.3]} 6... O-O {[%clk 0:02:57.6]} 7.
Bf4 {[%clk 0:02:54.4]} 7... Bf5 {[%clk 0:02:55.5]} 8. Nbd2 {[%clk 0:02:53.7]}
8... Nc6 {[%clk 0:02:48.5]} 9. Qe2 {[%clk 0:02:48.3]} 9... Nxd2 {[%clk
0:02:07.4]} 10. Qxd2 {[%clk 0:02:46.3]} 10... Qd7 {[%clk 0:01:54]} 11. Bg3
{[%clk 0:02:31.8]} 11... Rad8 {[%clk 0:01:50.9]} 12. Nh4 {[%clk 0:02:17.5]}
12... Bg6 {[%clk 0:01:39.6]} 13. Kh1 {[%clk 0:02:08.7]} 13... Qg4 {[%clk
0:01:29]} 14. h3 {[%clk 0:01:50.2]} 14... Qd7 {[%clk 0:01:21.1]} 15. f4 {[%clk
0:01:44.8]} 15... Bxd3 {[%clk 0:01:16.4]} 16. cxd3 {[%clk 0:01:38.1]} 16... f5
{[%clk 0:00:54.3]} 17. exf6 {[%clk 0:01:35.3]} 17... Rxf6 {[%clk 0:00:53.8]} 18.
a3 {[%clk 0:01:15.1]} 18... Re8 {[%clk 0:00:52.5]} 19. Rae1 {[%clk 0:01:11]}
19... Nd4 {[%clk 0:00:47.5]} 20. b4 {[%clk 0:01:03.3]} 20... Bb6 {[%clk
0:00:47]} 21. Rxe8+ {[%clk 0:00:57.5]} 21... Qxe8 {[%clk 0:00:46.5]} 22. Re1
{[%clk 0:00:58.1]} 22... Qd7 {[%clk 0:00:46.5]} 23. Bf2 {[%clk 0:00:47.2]} 23...
Nb3 {[%clk 0:00:35.8]} 24. Qb2 {[%clk 0:00:39.3]} 24... Bxf2 {[%clk 0:00:32.9]}
25. Qxf2 {[%clk 0:00:40.2]} 25... a5 {[%clk 0:00:16.9]} 26. f5 {[%clk
0:00:39.3]} 26... axb4 {[%clk 0:00:15.2]} 27. axb4 {[%clk 0:00:40.2]} 27... d4
{[%clk 0:00:13.1]} 28. Qe2 {[%clk 0:00:26.8]} 28... c5 {[%clk 0:00:09.2]} 29.
Qa2 {[%clk 0:00:22.4]} 29... Qf7 {[%clk 0:00:06.8]} 30. bxc5 {[%clk 0:00:19.2]}
30... Rc6 {[%clk 0:00:01.5]} 31. Qa8+ {[%clk 0:00:18.7]} 31... Qf8 {[%clk
0:00:01.2]} 32. Re8 {[%clk 0:00:19.2]} 1-0

[Event "Late-Titled-Tuesday-Blitz-August-29-2023"]
[Site "Chess.com"]
[Date "2023.08.29"]
[Round "6"]
[White "NotFischer"]
[Black "JerMorGurgeh"]
[Result "0-1"]
[WhiteElo "2250"]
[BlackElo "2408"]
[TimeControl "180+1"]
[EndTime "15:05:12 PDT"]
[Termination "JerMorGurgeh won by resignation"]

1. e4 {[%clk 0:03:00.9]} 1... e6 {[%clk 0:02:59.4]} 2. d4 {[%clk 0:03:00.3]}
2... d5 {[%clk 0:02:58.8]} 3. e5 {[%clk 0:03:00.7]} 3... c5 {[%clk 0:02:58.1]}
4. c3 {[%clk 0:03:01.1]} 4... Qb6 {[%clk 0:02:57.4]} 5. Nf3 {[%clk 0:03:01.3]}
5... Nc6 {[%clk 0:02:56.6]} 6. Bd3 {[%clk 0:03:00.9]} 6... cxd4 {[%clk
0:02:55.8]} 7. O-O {[%clk 0:03:00.6]} 7... Bd7 {[%clk 0:02:54.8]} 8. Re1 {[%clk
0:03:00.2]} 8... Nge7 {[%clk 0:02:50.8]} 9. h4 {[%clk 0:02:59.9]} 9... h6 {[%clk
0:02:44.8]} 10. Nbd2 {[%clk 0:02:58.5]} 10... dxc3 {[%clk 0:02:41.5]} 11. bxc3
{[%clk 0:02:59.4]} 11... Qc7 {[%clk 0:02:36.2]} 12. Rb1 {[%clk 0:02:53.7]} 12...
Nc8 {[%clk 0:02:31.8]} 13. c4 {[%clk 0:02:50]} 13... Nb6 {[%clk 0:02:19.1]} 14.
cxd5 {[%clk 0:02:35.2]} 14... Nxd5 {[%clk 0:02:17.4]} 15. Nc4 {[%clk 0:02:27.1]}
15... Ncb4 {[%clk 0:01:58.5]} 16. Qb3 {[%clk 0:02:02.5]} 16... Nxd3 {[%clk
0:01:46.8]} 17. Qxd3 {[%clk 0:02:02.5]} 17... Rc8 {[%clk 0:01:45.2]} 18. Ne3
{[%clk 0:01:58.4]} 18... Bc6 {[%clk 0:01:35.1]} 19. Bd2 {[%clk 0:01:54.4]} 19...
Be7 {[%clk 0:01:28.6]} 20. Rec1 {[%clk 0:01:54.2]} 20... Qd7 {[%clk 0:01:22.5]}
21. Nc4 {[%clk 0:01:45.2]} 21... O-O {[%clk 0:01:17.6]} 22. Nd4 {[%clk
0:01:32.8]} 22... Rfd8 {[%clk 0:01:01.1]} 23. Qg3 {[%clk 0:01:27.6]} 23... Kh8
{[%clk 0:00:56.5]} 24. Na5 {[%clk 0:01:01]} 24... Nb6 {[%clk 0:00:41.6]} 25.
Ndxc6 {[%clk 0:00:51]} 25... bxc6 {[%clk 0:00:41.2]} 26. Be3 {[%clk 0:00:48.7]}
26... c5 {[%clk 0:00:39.8]} 27. Nc4 {[%clk 0:00:42.5]} 27... Nxc4 {[%clk
0:00:31.8]} 28. Rxc4 {[%clk 0:00:43.4]} 28... Qd5 {[%clk 0:00:29.4]} 29. Rg4
{[%clk 0:00:41.8]} 29... Bf8 {[%clk 0:00:27.9]} 30. Bxh6 {[%clk 0:00:37.3]}
30... gxh6 {[%clk 0:00:23.6]} 31. Rg8+ {[%clk 0:00:36.3]} 31... Kh7 {[%clk
0:00:23.7]} 32. Kh2 {[%clk 0:00:18.9]} 32... Qd3 {[%clk 0:00:20.6]} 33. Rb3
{[%clk 0:00:16]} 33... Qxg3+ {[%clk 0:00:19.1]} 34. Rbxg3 {[%clk 0:00:16.9]}
34... c4 {[%clk 0:00:18.2]} 0-1